Cogmind - Beta 11 X7 @@@ ROGUE MODE // 2021.09.08 @ 21:22:56 Player: Vectis Result: Core destroyed Performance ------------- Evolutions (2) 1000 Regions Visited (8) 1600 Robots Destroyed (163) 815 Value Destroyed (5928) 5928 Prototype IDs (12) 240 Alien Tech Used (0) 0 Bonus (2468) 2468 TOTAL SCORE: 12051 Bonus ------- High Alert Combat Kills 194 Follower Combat Kills 1186 Entered Garrisons 400 Used RIF Installer 1000 Friendly Fire -312 Cogmind --------- Core Integrity 0/550 Matter 236/300 Energy 100/100 System Corruption 30% Temperature Cool (0) Movement Core (1800) Ox35 Location -8/Materials Parts ------- > --- POWER (1) -------- Light Angular Momentum Engine > --- PROPULSION (2) --- Wheel > --- UTILITY (6) ------ Huge Storage Unit Light Armor Plating Hardened Medium Armor Plating Relay Coupler [Grunt] (23) Relay Coupler [Hunter] (1) > --- WEAPON (2) ------- Mini Assault Cannon Remote Datajack > --- INVENTORY (25) --- Armored Treads Armored Treads Light Armor Plating Reactive Plating Relay Coupler [NC] (25) Relay Coupler [NC] (29) Relay Coupler [NC] (24) Relay Coupler [NC] (29) Relay Coupler [Grunt] (31) Relay Coupler [Brawler] (31) Relay Coupler [Duelist] (21) Relay Coupler [Sentry] (25) Relay Coupler [Sentry] (22) Relay Coupler [Sentry] (21) Relay Coupler [Sentry] (21) Relay Coupler [Demolisher] (19) Relay Coupler [Hunter] (19) Relay Coupler [Hunter] (18) Relay Coupler [Hunter] (18) Heavy Assault Cannon Mini Grenade Launcher Remote Datajack Peak State ------------ > --- POWER ------------ F-cell Engine > --- PROPULSION ------- Wheel Armored Wheel > --- UTILITY ---------- Huge Storage Unit Hardened Heavy Armor Plating Reactive Plating Hacking Suite Hacking Suite > --- WEAPON ----------- Mini Assault Cannon Remote Datajack > --- INVENTORY -------- Armored Treads Armored Treads Armored Treads Advanced Treads Improved Heat Sink Hardened Heavy Armor Plating Relay Coupler [NC] Relay Coupler [Swarmer] Relay Coupler [Grunt] Relay Coupler [Duelist] Relay Coupler [Sentry] Relay Coupler [Sentry] Relay Coupler [Sentry] Relay Coupler [Sentry] Relay Coupler [Demolisher] Relay Coupler [Hunter] Relay Coupler [Hunter] Beamcaster Ion Burst Cannon Heavy Assault Cannon Mini Grenade Launcher Datajack Plasma Cutter [Rating: 44] Favorites ----------- Power F-cell Engine Engine F-cell Engine Power Core Light Nuclear Core Propulsion Light Treads Treads Light Treads Leg Aluminum Leg Wheel Wheel Utility Hacking Suite Device Improved Heat Sink Storage Huge Storage Unit Processor Transport Network Coupler Hackware Hacking Suite Protection Medium Armor Plating Weapon Heavy Assault Cannon Energy Gun Beamcaster Energy Cannon Ion Burst Cannon Ballistic Gun Assault Rifle Ballistic Cannon Heavy Assault Cannon Launcher Rocket Launcher Special Weapon Remote Datajack Special Melee Weapon Datajack Build | -11 -10 -10 -9 -9 -9 -8 -8 -8 ------- Run | Scr Mat Min Mat Sto Gar Mat Gar Mat Slots Evolved 4 | . . . 2 . . 2 . . Power . | . . . . . . . . . Propulsion . | . . . . . . . . . Utility 4 | . . . 2 . . 2 . . Weapon . | . . . . . . . . . Parts Attached 216 | 2 19 6 37 31 33 47 35 6 Power 11 | . 1 1 . 3 1 3 1 1 Engine 10 | . 1 1 . 3 1 3 . 1 Core 1 | . . . . . . . 1 . Reactor . | . . . . . . . . . Propulsion 32 | 2 1 . 9 4 7 9 . . Treads 24 | 2 1 . 9 4 7 1 . . Leg . | . . . . . . . . . Wheel 8 | . . . . . . 8 . . Hover . | . . . . . . . . . Flight . | . . . . . . . . . Utility 77 | . 9 . 13 8 10 20 12 5 Device 7 | . 4 . . . 2 . 1 . Storage 8 | . 3 . 2 . 2 1 . . Processor 1 | . 1 . . . . . . . Hackware 24 | . . . 3 2 3 5 7 4 Protection 37 | . 1 . 8 6 3 14 4 1 Artifact . | . . . . . . . . . Weapon 96 | . 8 5 15 16 15 15 22 . Energy Gun 22 | . 5 2 5 4 2 2 2 . Energy Cannon 7 | . . . . 2 5 . . . Ballistic Gun 2 | . 2 . . . . . . . Ballistic Cannon 27 | . . 1 5 7 2 4 8 . Launcher 8 | . . 1 2 1 1 . 3 . Special Weapon 28 | . 1 . 3 2 5 9 8 . Impact Weapon . | . . . . . . . . . Slashing Weapon . | . . . . . . . . . Piercing Weapon . | . . . . . . . . . Special Melee Weapon 2 | . . 1 . . . . 1 . Unidentified Prototypes 4 | . . . 1 3 . . . . Parts Lost 13 | . 1 . . 2 3 4 1 2 Power 3 | . 1 . . . 1 1 . . Propulsion 2 | . . . . . . 1 . 1 Utility 8 | . . . . 2 2 2 1 1 Weapon . | . . . . . . . . . Highest Loss Streak 2 | . 1 . . 1 2 2 1 2 Average Slot Usage (%) 87 | . 96 94 91 88 91 90 74 85 Engine 9 | . 14 14 11 10 10 9 4 5 Treads 16 | . 27 28 21 21 22 9 . . Wheel 5 | . . . . . . 7 18 13 Device 2 | . 12 14 . . 3 . . . Storage 10 | . 14 14 11 11 11 9 9 9 Hackware 19 | . . . 18 18 26 22 30 21 Protection 8 | . . . 13 14 3 20 2 14 Energy Gun 4 | . 14 17 3 . 3 . 1 . Ballistic Cannon 6 | . . 5 7 10 6 8 2 9 Special Weapon 2 | . 4 . 3 . . 2 3 9 Naked Turns . | . . . . . . . . . Heaviest Build 132 | 11 52 58 107 118 110 132 129 107 Greatest Support 43 | 40 40 40 40 40 43 43 22 22 Greatest Overweight (x) 7 | . 1 1 2 2 2 7 5 4 Average Overweight (x) 2 | . . 1 1 2 . 3 3 4 Largest Inventory Capacity 25 | 8 20 20 25 25 25 25 25 25 Average Capacity 22 | 8 16 20 22 25 18 25 25 25 Most Carried 25 | 6 15 20 25 25 25 25 25 25 Average Carried 19 | 6 13 18 22 24 17 24 17 23 Final Capacity 25 | 8 20 20 25 25 25 25 25 25 Final Carried 25 | 6 15 20 24 25 25 25 25 23 Class Distribution -------------------- 30% | Commander-Mutant 29% | Bothacker-Mutant 28% | Mutant 8% | Hacker-Mutant Dominant Class ---------------- Mutant | -10/Materials Mutant | -10/Mines Hacker-Mutant | -9/Materials Commander-Mutant | -9/Storage Commander-Mutant | -9/Garrison Bothacker-Mutant | -8/Materials Bothacker-Mutant | -8/Garrison Bothacker-Mutant | -8/Materials Resources | -11 -10 -10 -9 -9 -9 -8 -8 -8 ----------- Run | Scr Mat Min Mat Sto Gar Mat Gar Mat Matter Collected 5387 | 220 316 122 630 1204 601 1336 804 154 Remotely . | . . . . . . . . . Salvage Created 4794 | . 647 301 597 1206 486 1141 416 . Parts 309 | . 40 16 48 84 28 63 30 . Haulers Intercepted 14 | . 2 . 3 6 . 3 . . Recyclers Shooed 6 | . . 1 3 . . 2 . . Parts Field Recycled . | . . . . . . . . . Retrieved Matter . | . . . . . . . . . Parts Self-Destructed . | . . . . . . . . . Prevented . | . . . . . . . . . Kills | -11 -10 -10 -9 -9 -9 -8 -8 -8 ------- Run | Scr Mat Min Mat Sto Gar Mat Gar Mat Combat Hostiles Destroyed 106 | . 12 7 15 23 17 18 14 . Melee 1 | . . . 1 . . . . . Guns 23 | . 12 5 1 . 4 . 1 . Cannons 64 | . . . 7 20 10 18 9 . AOE 18 | . . 2 6 3 3 . 4 . Classes Destroyed 15 | . 7 2 2 1 1 . 2 . Worker 7 | . 1 1 1 1 . 3 . . Builder 6 | . . . . 4 . 2 . . Tunneler 3 | . . 1 . . . 2 . . Hauler 14 | . 2 . 3 6 . 3 . . Recycler 9 | . . 1 . 4 . 4 . . Mechanic 1 | . 1 . . . . . . . Operator 10 | . 1 . 4 1 . 4 . . Watcher 6 | . 1 . 2 2 . . 1 . Swarmer 19 | . 3 3 5 3 4 . 1 . Grunt 56 | . 9 4 4 10 9 8 12 . Brawler 2 | . . . 1 . 1 . . . Duelist 2 | . . . . . 1 1 . . Protector 1 | . . . . . . . 1 . Sentry 26 | . . . 5 10 2 9 . . Programmer 1 | . . . . . . . 1 . Best Kill Streak 7 | . 3 3 5 7 4 5 4 . Combat Bots Only 5 | . 3 3 5 4 4 3 4 . Max Kills in Single Turn 4 | . 2 2 4 2 2 1 2 . Gunslinging 1 | . 1 . . . . . . . Exploded 4 | . . 2 4 2 2 . 2 . Melee 1 | . . . 1 . . . . . Uniques/NPCs Destroyed . | . . . . . . . . . Combat | -11 -10 -10 -9 -9 -9 -8 -8 -8 -------- Run | Scr Mat Min Mat Sto Gar Mat Gar Mat Damage Taken 5966 | . 451 211 519 1640 448 952 1157 588 Core 1011 | . 86 36 56 231 49 87 100 366 Absorbed by Shields . | . . . . . . . . . Core Remaining (%) 55 | 100 . 51 . . 16 . . . Volleys Fired 573 | . 74 18 66 128 59 136 79 13 Largest 2 | . 2 2 2 2 2 2 1 1 Hottest 175 | . 85 112 95 100 175 95 75 30 Shots Fired 663 | . 121 30 75 132 73 140 79 13 Gun 188 | . 103 22 21 6 25 6 5 . Cannon 338 | . . 6 33 115 31 111 42 . Launcher 16 | . . 2 4 3 3 . 4 . Special 121 | . 18 . 17 8 14 23 28 13 Kinetic 388 | . 69 6 33 113 14 111 42 . Thermal 195 | . 52 22 38 16 42 15 10 . Explosive 16 | . . 2 4 3 3 . 4 . Electromagnetic . | . . . . . . . . . Robot Hit Streak 12 | . 8 7 8 11 10 9 10 12 Robot Miss Streak 8 | . 5 3 4 4 8 3 5 1 Penetration Max 1 | . . . . 1 . . . . Secondary Targets 1 | . 1 . . . . . . . Max Gunslinging Chain 1 | . 1 . . . . . . . Shots Hit Robots 435 | . 78 16 52 87 42 99 49 12 Core Hits 200 | . 34 13 30 46 17 36 24 . Critical Kills . | . . . . . . . . . Critical Parts Destroyed . | . . . . . . . . . Critical Strikes 38 | . 1 2 3 15 3 12 2 . Burn 5 | . 1 1 . 1 1 1 . . Blast 32 | . . 1 2 14 2 11 2 . Sever 1 | . . . 1 . . . . . Melee Attacks 1 | . . . . . . . 1 . Impact . | . . . . . . . . . Slashing . | . . . . . . . . . Piercing . | . . . . . . . . . Sneak Attacks . | . . . . . . . . . Combat Hostiles . | . . . . . . . . . Follow-up Attacks . | . . . . . . . . . Damage Inflicted 16004 | . 1020 479 2451 4879 1378 3638 1984 175 Guns 1808 | . 792 212 235 132 321 70 46 . Cannons 11555 | . . 89 1475 4067 875 3492 1557 . Explosions 1691 | . . 142 495 519 182 . 353 . Melee . | . . . . . . . . . Ramming 497 | . 72 36 98 88 . 28 . 175 Kinetic 11532 | . 490 89 1475 3988 441 3492 1557 . Thermal 2284 | . 458 212 383 284 755 118 74 . Explosive 1691 | . . 142 495 519 182 . 353 . Electromagnetic . | . . . . . . . . . Impact . | . . . . . . . . . Slashing . | . . . . . . . . . Piercing . | . . . . . . . . . Highest Corruption 30 | . . . 1 2 3 . . 30 Average Corruption 2 | . . . 1 1 2 . . 21 Corruption Purged . | . . . . . . . . . Effects 118 | . . . 12 20 67 . . 19 Message Errors 49 | . . . 6 11 27 . . 5 Matter Fused 19 | . . . . . 11 . . 8 Heat Flow Errors 9 | . . . . . 9 . . . Energy Discharges 25 | . . . 6 7 11 . . 1 Data Loss (minor) 14 | . . . . 2 9 . . 3 Data Loss (major) 2 | . . . . . . . . 2 Overload Shots . | . . . . . . . . . Overflow Damage 696 | . 10 . 105 259 28 214 80 . Projectiles 577 | . 10 . 97 161 22 213 74 . Explosions 118 | . . . 8 98 6 . 6 . Melee 1 | . . . . . . 1 . . Knockbacks 61 | . . . 6 13 1 26 15 . Impact . | . . . . . . . . . Kinetic 55 | . . . 6 11 1 22 15 . Secondary 6 | . . . . 2 . 4 . . Self-Inflicted Damage 245 | . . 18 . . 41 11 . 175 Shots 2 | . . 1 . . 1 . . . Rammed 66 | . 16 7 20 19 . 4 . . Targets Rammed 69 | . 17 8 21 19 . 4 . . Kicked . | . . . . . . . . . Crushed 3 | . 1 1 1 . . . . . Highest Temperature 325 | . 302 84 184 246 325 296 324 30 Average Temperature 70 | . 127 33 37 59 104 71 85 13 Received Heat Transfer 2049 | . 252 75 96 585 138 444 459 . Effects 2 | . . . . . 1 . 1 . Interference 2 | . . . . . 1 . 1 . Siege Activations . | . . . . . . . . . Robots Corrupted . | . . . . . . . . . Combat Hostiles . | . . . . . . . . . Parts Fried . | . . . . . . . . . Impact Corruptions 2 | . . . . . . 2 . . Robots Melted . | . . . . . . . . . Combat Hostiles . | . . . . . . . . . Parts Melted 5 | . 2 1 . 1 1 . . . Heat Transferred 4989 | . 1406 592 888 593 1067 333 110 . Parts Sabotaged . | . . . . . . . . . Parts Stolen . | . . . . . . . . . Parts Stripped . | . . . . . . . . . Power Chain Reactions . | . . . . . . . . . Missiles Intercepted . | . . . . . . . . . Alert | -11 -10 -10 -9 -9 -9 -8 -8 -8 ------- Run | Scr Mat Min Mat Sto Gar Mat Gar Mat Peak Influence 912 | . 265 207 252 383 912 519 809 411 Initial 444 | . . 7 1 5 114 444 103 393 Average 342 | . 48 32 45 182 745 196 706 101 Maximum Alert Level 3 | . 1 1 1 1 3 2 3 2 Low Security (%) 51 | 100 92 88 98 60 4 73 2 86 Level 1 11 | . 7 11 1 39 4 11 3 6 Level 2 11 | . . . . . 18 15 29 6 Level 3 25 | . . . . . 72 . 64 . Level 4 . | . . . . . . . . . Level 5 . | . . . . . . . . . High Security . | . . . . . . . . . Max Security . | . . . . . . . . . Squads Dispatched 24 | . 2 1 3 7 . 9 . 2 Investigation 3 | . . 1 . 1 . 1 . . Extermination . | . . . . . . . . . Reinforcement 14 | . 2 . 3 2 . 5 . 2 Assault . | . . . . . . . . . Garrison 7 | . . . . 4 . 3 . . Intercept . | . . . . . . . . . Construction Impeded 3 | . . . . 2 . 1 . . Haulers Reinforced . | . . . . . . . . . Active Scanning Responses . | . . . . . . . . . Cargo Convoy Interrupts . | . . . . . . . . . Stealth | -11 -10 -10 -9 -9 -9 -8 -8 -8 --------- Run | Scr Mat Min Mat Sto Gar Mat Gar Mat Distress Signals 18 | . 2 1 3 4 . 4 2 2 Communications Jammed . | . . . . . . . . . Distress Signals . | . . . . . . . . . Times Spotted 309 | . 42 7 60 61 23 68 36 12 Peak Tracking Total 6 | . 3 3 6 5 5 6 6 2 Tactical Retreats 13 | . . . 1 3 1 4 4 . Traps | -11 -10 -10 -9 -9 -9 -8 -8 -8 ------- Run | Scr Mat Min Mat Sto Gar Mat Gar Mat Traps Triggered 21 | . . . 1 3 7 . 8 2 Indirectly . | . . . . . . . . . Trap Hack Attempts 29 | . . 29 . . . . . . Triggered . | . . . . . . . . . Disarmed . | . . . . . . . . . Reprogrammed 3 | . . 3 . . . . . . Reused . | . . . . . . . . . Traps Extracted . | . . . . . . . . . Installed . | . . . . . . . . . Triggered . | . . . . . . . . . Machines | -11 -10 -10 -9 -9 -9 -8 -8 -8 ---------- Run | Scr Mat Min Mat Sto Gar Mat Gar Mat Machines Disabled 22 | . . . 3 5 5 3 4 2 Max in Single Turn 1 | . . . 1 1 1 1 1 . Garrison Relay 8 | . . . . . 4 . 4 . Machines Sabotaged . | . . . . . . . . . Garrisons Compromised . | . . . . . . . . . Overloaded Fab Kills . | . . . . . . . . . Fab Network Shutdowns . | . . . . . . . . . Hacking | -11 -10 -10 -9 -9 -9 -8 -8 -8 --------- Run | Scr Mat Min Mat Sto Gar Mat Gar Mat Machines Accessed 47 | . 7 2 6 16 . 12 . 4 Terminals 31 | . 6 . 5 11 . 7 . 2 Fabricators . | . . . . . . . . . Repair Stations 6 | . 1 . 1 2 . 1 . 1 Recycling Units 5 | . . . . 2 . 2 . 1 Scanalyzers 1 | . . . . . . 1 . . Garrison Access 2 | . . . . 1 . 1 . . Total Hacks 136 | . 20 2 15 44 . 41 . 14 Successful 102 | . 11 2 11 35 . 34 . 9 Failed 30 | . 8 . 3 8 . 6 . 5 Catastrophic . | . . . . . . . . . Database Lockouts 4 | . 1 . 1 1 . 1 . . Manual 82 | . 9 . 11 25 . 27 . 10 Terminals 85 | . 17 . 13 27 . 24 . 4 Fabricators . | . . . . . . . . . Repair Stations 21 | . 3 . 2 10 . 2 . 4 Recycling Units 14 | . . . . 4 . 4 . 6 Scanalyzers 5 | . . . . . . 5 . . Garrison Access 9 | . . . . 3 . 6 . . Terminal Hacks 36 | . 4 2 5 13 . 12 . . Record 2 | . . . 1 . . 1 . . Part Schematic 2 | . . . . 1 . 1 . . Robot Schematic 4 | . . . . 1 . 3 . . Robot Analysis 7 | . 1 . 1 2 . 3 . . Prototype ID Bank 4 | . 2 . . 1 . 1 . . Open Door 6 | . . 2 . 4 . . . . Alert Level 1 | . . . . 1 . . . . Unreport Threat 8 | . . . 2 3 . 3 . . Maintenance Status 1 | . 1 . . . . . . . Hauler Manifests 1 | . . . 1 . . . . . Fabricator Hacks . | . . . . . . . . . Repair Station Hacks 17 | . 2 . 2 9 . 2 . 2 Scan Component 9 | . 1 . 1 5 . 1 . 1 Repair 8 | . 1 . 1 4 . 1 . 1 Recycling Unit Hacks 1 | . . . . . . . . 1 Retrieve Components 1 | . . . . . . . . 1 Scanalyzer 5 | . . . . . . 5 . . Insert Component 2 | . . . . . . 2 . . Analyze 3 | . . . . . . 3 . . Garrison Access Hacks 2 | . . . . 1 . 1 . . Unlock Access 2 | . . . . 1 . 1 . . Unauthorized Hacks 41 | . 5 . 4 12 . 14 . 6 Terminals 22 | . 5 . 4 6 . 5 . 2 Track 2 | . . . 1 . . . . 1 Botnet 16 | . 4 . 2 6 . 3 . 1 Disrupt 2 | . . . . . . 2 . . Operators 2 | . 1 . 1 . . . . . Fabricators . | . . . . . . . . . Repair Stations 1 | . . . . . . . . 1 Mechanics 1 | . . . . . . . . 1 Recycling Units 11 | . . . . 4 . 4 . 3 Reject 5 | . . . . 2 . 2 . 1 Recyclers 1 | . . . . . . . . 1 Mask 5 | . . . . 2 . 2 . 1 Scanalyzers . | . . . . . . . . . Garrison Access 7 | . . . . 2 . 5 . . Restock 2 | . . . . 1 . 1 . . Reprogram 3 | . . . . 1 . 2 . . Intercept 1 | . . . . . . 1 . . Eject 1 | . . . . . . 1 . . Data Cores Recovered 3 | . . . 1 1 . 1 . . Used 1 | . . . 1 . . . . . Hacking Detections 34 | . 5 . 6 10 . 10 . 3 Full Trace Events . | . . . . . . . . . Feedback Events . | . . . . . . . . . Feedback Blocked . | . . . . . . . . . Robot Schematics Acquired 4 | . . . . 1 . 3 . . Robots Built . | . . . . . . . . . Matter . | . . . . . . . . . Time . | . . . . . . . . . Total Robot Build Rating . | . . . . . . . . . Part Schematics Acquired 3 | . . . . 1 . 2 . . Parts Built . | . . . . . . . . . Matter . | . . . . . . . . . Time . | . . . . . . . . . Total Part Build Rating . | . . . . . . . . . Parts Repaired 8 | . 1 . 1 4 . 1 . 1 Time 287 | . 26 . 26 153 . 44 . 38 Parts Recycled . | . . . . . . . . . Recycled Matter . | . . . . . . . . . Retrieved Matter . | . . . . . . . . . Retrieved Components 10 | . . . . . . . . 10 Parts Scanalyzed 2 | . . . . . . 2 . . Part Schematics Acquired 1 | . . . . . . 1 . . Parts Damaged . | . . . . . . . . . Bothacking | -11 -10 -10 -9 -9 -9 -8 -8 -8 ------------ Run | Scr Mat Min Mat Sto Gar Mat Gar Mat Used RIF Installer 2 | . . . . . 1 . 1 . Signal Jammer 1 | . . . . . . . 1 . Robots Hacked 31 | . . . . . 5 9 12 5 Non-combat 5 | . . . . . . 2 . 3 Combat 26 | . . . . . 5 7 12 2 Robot Hacks Applied 37 | . . . . . 5 11 12 9 no_distress 1 | . . . . . . 1 . . purge_threat 7 | . . . . . . 2 . 5 locate_traps 1 | . . . . . . . . 1 scatter_targeting 1 | . . . . . . . 1 . spike_heat 1 | . . . . . . . 1 . amplify_resonance 1 | . . . . . . 1 . . reboot_system 2 | . . . . . 1 . . 1 overwrite_iff 3 | . . . . . . 3 . . streamctrl_low 1 | . . . . . . 1 . . formatsys_low 1 | . . . . . . . . 1 formatsys_high 18 | . . . . . 4 3 10 1 Relay Couplers Released 40 | . . . . 3 15 3 19 . Ejected 3 | . . . . . . 3 . . Machine Destruction 31 | . . . . . 15 . 16 . Programmers 6 | . . . . 3 . . 3 . Attached 17 | . . . . . 3 3 7 4 Robots Rewired 4 | . . . . . . . 4 . Allies Hacked . | . . . . . . . . . Hacks Repelled . | . . . . . . . . . Allies | -11 -10 -10 -9 -9 -9 -8 -8 -8 -------- Run | Scr Mat Min Mat Sto Gar Mat Gar Mat Total Allies 40 | . . . . 12 4 8 14 2 Largest Group 12 | . . . . 12 12 12 10 12 Highest-Rated Group 184 | . . . . 118 106 104 166 184 Highest-Rated Ally 38 | . . . . 16 18 38 38 21 Total Orders 87 | . . . . 2 36 1 46 2 STAY 73 | . . . . 1 32 1 38 1 FOLLOW 14 | . . . . 1 4 . 8 1 Ally Attacks 246 | . . . . 11 30 127 27 51 Total Damage 3341 | . . . . 236 341 1171 422 1171 Kills 48 | . . . . 3 4 20 4 17 Allies Corrupted . | . . . . . . . . . Allies Melted . | . . . . . . . . . Intel | -11 -10 -10 -9 -9 -9 -8 -8 -8 ------- Run | Scr Mat Min Mat Sto Gar Mat Gar Mat Robot Analysis Total 7 | . 1 . 1 2 . 3 . . Derelict Logs Recovered 2 | . . 2 . . . . . . Drone Launches . | . . . . . . . . . Drone Recoveries . | . . . . . . . . . Exploration | -11 -10 -10 -9 -9 -9 -8 -8 -8 ------------- Run | Scr Mat Min Mat Sto Gar Mat Gar Mat Turns Passed 29567 | 10 2751 2240 4205 5048 4934 3289 6230 860 Spaces Moved 11598 | 5 1182 696 1199 1152 1891 1190 4017 266 Core . | . . . . . . . . . Treads 6539 | 5 1182 696 1199 1152 1891 414 . . Legs . | . . . . . . . . . Wheels 5059 | . . . . . . 776 4017 266 Hover . | . . . . . . . . . Flight . | . . . . . . . . . Fastest Speed 130 | 160 160 260 260 360 160 135 130 145 Average Speed 218 | 160 200 260 313 360 239 230 138 145 Slowest Speed 365 | 160 260 260 360 360 365 365 160 145 Overloaded Moves . | . . . . . . . . . Propulsion Burnouts . | . . . . . . . . . Robots Hopped . | . . . . . . . . . Cave-ins Triggered . | . . . . . . . . . Exploration Rate (%) 66 | 2 95 100 63 94 71 72 68 35 Regions Visited 8 Branch Regions 2 Pre-discovered Areas . | . . . . . . . . . Known Exits Taken 3 | . . . 1 1 . 1 . . Unknown Exits Taken 3 | 1 1 1 . . . . . . Scrap Searched 1 | . . 1 . . . . . . Spaces Dug 26 | . . . . 7 . 1 18 . Terrain Destroyed 244 | . . 25 49 80 12 34 39 5 Melee . | . . . . . . . . . Projectile 118 | . . 6 9 52 5 34 12 . AOE 121 | . . 19 40 28 7 . 27 . Terrain Rammed 32 | . . . . . . . . 32 Walls Destroyed 5 | . . . . . . . . 5 Machines Disabled . | . . . . . . . . . Actions | -11 -10 -10 -9 -9 -9 -8 -8 -8 --------- Run | Scr Mat Min Mat Sto Gar Mat Gar Mat Total 14621 | 6 1422 1086 1523 1817 2232 1551 4649 335 Wait 1368 | . 94 306 127 435 162 123 107 14 Move 11590 | 4 1181 695 1198 1151 1890 1189 4016 266 Hop . | . . . . . . . . . Pick Up 290 | . 20 12 33 20 33 18 151 3 Fast Attach 46 | . 5 2 7 10 3 11 6 2 Attach 81 | . 3 1 19 14 10 15 16 3 Detach 23 | . . 2 2 5 4 3 7 . Swap 89 | 2 11 3 11 7 20 21 13 1 Drop 310 | . 17 10 39 26 37 31 148 2 Fire 573 | . 74 18 66 128 59 136 79 13 Melee 1 | . . . . . . . 1 . Ram 34 | . . . . . . 3 . 31 Kick . | . . . . . . . . . Crush 66 | . 17 8 21 19 . 1 . . Escape Stasis 72 | . . . . 2 14 . 56 . Rewire 49 | . . . . . . . 49 . Trap 29 | . . 29 . . . . . . Miscellaneous . | . . . . . . . . . Route ------- -11/Scrapyard -10/Materials (discovered 5 exits: *Mat x3 / *Min x2) -10/Mines (discovered 2 exits: *Mat x2) -9/Materials (discovered 5 exits: *Mat x2 / [*Min] / *Sto x2) -9/Storage (discovered 2 exits: *Mat / Gar) -9/Garrison (discovered 3 exits: *Mat x3) -8/Materials (discovered 3 exits: [*Fac x2] / Gar) -8/Garrison (discovered 3 exits: *Mat x3) -8/Materials History --------- Turn | Location | Event 4 | -11/Scrapyard | Discovered new exit (range 3) 11 | -11/Scrapyard | Entered Materials 314 | -10/Materials | Build established: Mutant 422 | -10/Materials | Discovered new exit (range 6) 649 | -10/Materials | Discovered new exit (range 8) 1048 | -10/Materials | Discovered new exit (range 14) 1225 | -10/Materials | Discovered new exit (range 11) 1240 | -10/Materials | Discovered new exit (range 15) 1296 | -10/Materials | Central database locked down 1608 | -10/Materials | Repaired Lgt. Treads 2762 | -10/Materials | Entered Mines 2865 | -10/Mines | Discovered new exit (range 9) 2926 | -10/Mines | Discovered new exit (range 5) 3675 | -10/Mines | Met a Derelict who couldn't figure out how to use a Trap Extractor 4074 | -10/Mines | Met a Derelict shopkeep closing up shop 4325 | -10/Mines | Received a Rocket Launcher from a helpful Derelict 4643 | -10/Mines | A weapon hastily lodged in a ceiling crevice suddenly fell to the ground 4658 | -10/Mines | Learned Materials stockpile data 5002 | -10/Mines | Entered Materials 5002 | -9/Materials | Evolved 2 slots: Utility x2 5003 | -9/Materials | Identified exit to Storage 6633 | -9/Materials | Discovered exit to Storage (range 9) 6858 | -9/Materials | Repaired Lgt. Treads 6920 | -9/Materials | Central database locked down 7221 | -9/Materials | Build established: Hacker-Mutant 7313 | -9/Materials | Discovered new exit (range 7) 8489 | -9/Materials | Discovered new exit (range 13) 9020 | -9/Materials | Discovered new exit (range 8) 9207 | -9/Materials | Entered Storage 9707 | -9/Storage | Garrison activated, responded to threat 9891 | -9/Storage | Build established: Mutant 11632 | -9/Storage | Discovered new exit (range 13) 11687 | -9/Storage | Assisted by bots powering up and referring to "LRC-V3" 12000 | -9/Storage | Build established: Commander-Mutant 12387 | -9/Storage | Repaired Hvy. Assault Cannon 12469 | -9/Storage | Repaired F-cell Engine 13121 | -9/Storage | Central database locked down 13384 | -9/Storage | Identified exit to Garrison 13446 | -9/Storage | Garrison activated, responded to threat 13457 | -9/Storage | Core integrity fell below 50% 13577 | -9/Storage | Repaired Remote Datajack 13591 | -9/Storage | Repaired Lgt. Treads 14255 | -9/Storage | Entered Garrison 14255 | -9/Garrison | Accompanied by 10 allies 14596 | -9/Garrison | Triggered checkpoint 14646 | -9/Garrison | Discovered new exit (range 10) 14710 | -9/Garrison | Triggered checkpoint 14714 | -9/Garrison | Core integrity fell below 20% 14795 | -9/Garrison | Discovered new exit (range 15) 14882 | -9/Garrison | Triggered checkpoint 14975 | -9/Garrison | Discovered new exit (range 8) 14995 | -9/Garrison | Installed Relay Interface Framework 15170 | -9/Garrison | Triggered checkpoint 15337 | -9/Garrison | Garrison Relay disabled 15546 | -9/Garrison | Triggered checkpoint 15611 | -9/Garrison | Garrison Relay disabled 15788 | -9/Garrison | Triggered checkpoint 15863 | -9/Garrison | Garrison Relay disabled 15990 | -9/Garrison | Triggered checkpoint 16303 | -9/Garrison | Garrison Relay disabled 17175 | -9/Garrison | Triggered checkpoint 18443 | -9/Garrison | Build established: Bothacker-Mutant 19189 | -9/Garrison | Entered Materials 19189 | -8/Materials | Accompanied by 12 allies 19189 | -8/Materials | Evolved 2 slots: Utility x2 20186 | -8/Materials | Discovered new exit (range 8) 20850 | -8/Materials | Garrison activated, responded to threat 20966 | -8/Materials | Discovered new exit (range 10) 22268 | -8/Materials | Repaired Remote Datajack 22321 | -8/Materials | Central database locked down 22454 | -8/Materials | Identified exit to Garrison 22478 | -8/Materials | Entered Garrison 22478 | -8/Garrison | Accompanied by 2 allies 22508 | -8/Garrison | Triggered checkpoint 22638 | -8/Garrison | Garrison Relay disabled 22670 | -8/Garrison | Triggered checkpoint 22732 | -8/Garrison | Triggered checkpoint 23078 | -8/Garrison | Triggered checkpoint 23302 | -8/Garrison | Discovered new exit (range 15) 23705 | -8/Garrison | Discovered new exit (range 10) 23732 | -8/Garrison | Expanded RIF knowledge: Signal Jamming 24250 | -8/Garrison | Triggered checkpoint 24325 | -8/Garrison | Garrison Relay disabled 24372 | -8/Garrison | Discovered new exit (range 14) 24466 | -8/Garrison | Triggered checkpoint 24690 | -8/Garrison | Garrison Relay disabled 24903 | -8/Garrison | Triggered checkpoint 25132 | -8/Garrison | Garrison Relay disabled 25888 | -8/Garrison | Build established: Commander-Mutant 28531 | -8/Garrison | Build established: Bothacker-Mutant 28708 | -8/Garrison | Entered Materials 28708 | -8/Materials | Accompanied by 10 allies 28897 | -8/Materials | Repaired Hvy. Assault Cannon 29142 | -8/Materials | Core integrity fell below 50% 29153 | -8/Materials | System corruption reached 10% 29299 | -8/Materials | Core integrity fell below 20% 29533 | -8/Materials | System corruption reached 30% 29568 | -8/Materials | Core destroyed Last Messages --------------- 29460_ Slammed into Wall. 29466_ System corrupted: Matter fused (-9). 29478_ Slammed into Wall. 29478_ Destabilizing: System corrupted (+1). 29478_ Destabilizing: Core damaged (-27). 29496_ Slammed into Wall. 29496_ Destabilizing: System corrupted (+1). 29500_ System corrupted: Matter fused (-9). 29514_ Slammed into Wall. 29514_ Destabilizing: System corrupted (+1). 29517_ System corrupted: Energy discharge (-25). 29532_ Q#CFZVB 9KM<7CJ4XQ 5VLA 29532_ Slammed into Wall. 29532_ Destabilizing: Core damaged (-5). 29532_ Destabilizing: System corrupted (+1). 29550_ Slammed into Wall. 29561_ System corrupted: Component data lost. 29568_ Slammed into Wall. 29568_ Destabilizing: Core damaged (-22). 29568_ Destabilizing: Core damaged (-11). Map ----- +----------------------------------------------------+ | | | | | | | | | | | | | | | | | | | | | | | | | | | | | | | | | | | | | | | | | | | | | | | | | | | ?????????????????????#;;;@####????????????? | | ?????????????????????# hYYY #????????????? | | ????###########??????# """h #????????????? | | ????# ! #??????#g""" #????????????? | | ????# #??????# """ +????????????? | | ????# #??????# / #????????????? | | ????# ########;##+#### ????? | | ##### / =%! ????? | | ## #########%%!* ????? | | ! ## #???????? [ ????? | | % ## #???????? ?????? | | * ######/############? ?????? | | #"""# ??????? | | #"Y"# ####????? ###??????? | | #???????? #????????? | | = ##+#????????####### #????????? | | #?????????????????? +????????? | | [ #??????????????????? #????????? | | ="%" """ #???????????????????? #????????? | | !""" """ #??????????????????????????????? | | !""" """ + ?????????????????????????????? | | ![* # ???????????????????????????? | | [! # ???????????????????????????? | | = ####### #? ??????????????????????????? | | #######/######?????????????????????????? | +----------------------------------------------------+ Best States ------------- Heat Dissipation 45 Energy Generation 19 Energy Capacity 500 Matter Stores 300 Matter Capacity 300 Sight Range 16 Terrain Scan Density 10 Armor Coverage 750 Resistance: KI 20 Resistance: EM 15 Evasion (%) 40 Recoil Reduction 2 Offensive Hacking 30 Relay Coupler Types 46 Relay Coupler Value 4 Item Schematics ----------------- Cargo Storage Unit | -9/Storage | Hacked Plasma Cutter | -8/Materials | Scanalyzed Imp. Utility Shielding | -8/Materials | Hacked Robot Schematics ------------------ M-13 Machinist | -9/Storage | Hacked O-24 Administrator | -8/Materials | Hacked L-31 Rogue | -8/Materials | Hacked O-16 Technician | -8/Materials | Hacked Fabricated ------------ Nothing Alien Tech Used ----------------- None Achievements -------------- None Challenges ------------ None Game ------ Seed ExplosiveBiocellPenetrator Manual? 0 Play Time 02:45:21 Cumulative 301.9 hours Start 2021.09.08 @ 18:19:52 End 2021.09.08 @ 21:22:56 Sessions 1 Manual Loads 0 Difficulty Rogue Special Mode None Game No. 132 Rogue 132 Adventurer 0 Explorer 0 Win Type - Total 12 Types 10/0/0/1/0/1/0/0/0 Lore% 84 Gallery% 86 Achievement% 76 Wizard Run 0 Options --------- ASCII 0 Keyboard 0 Movement Numpad Keybinds 0 Fullscreen 2 Font 18/Smallcaps Map View 76x50 Tactical HUD 1 Map Filters NONE Filters NONE Steam 1 RUN: 780dc34b-f635-4d2e-99e2-22c9a7751621